fUST/lending_fUST_20250928
["ID","MTS","AMOUNT","RATE_DAILY","PERIOD"]
[388050207,1758991869545,-480.0,0.0003589,9]
[388050208,1758991869556,-480.0,0.0003589,9]
[388050209,1758991869569,-480.0,0.0003589,9]
[388050210,1758991869579,-480.0,0.0003589,9]
[388050211,1758991869588,-480.0,0.0003589,9]
[388050212,1758991869598,-942.12,0.0003589,9]
[388050213,1758991869608,-480.0,0.0003589,9]
[388050214,1758991869618,-480.0,0.0003589,9]
[388050215,1758991869627,-480.0,0.0003589,9]
[388050216,1758991869636,-1372.36,0.0003589,9]
[388050217,1758991869646,-691.31,0.0003589,9]
[388050218,1758991869655,-480.0,0.0003589,9]
[388050219,1758991869665,-2753.46,0.0003589,9]
[388050220,1758991869675,-480.0,0.0003589,9]
[388050221,1758991869684,-2403.49,0.0003589,9]
[388050222,1758991869694,-480.0,0.0003589,9]
[388050223,1758991869703,-480.0,0.0003589,9]
[388050224,1758991869712,-480.0,0.0003589,9]
[388050225,1758991869721,-480.0,0.0003589,9]
[388050226,1758991869731,-917.5,0.0003589,9]
[388050227,1758991869740,-480.0,0.0003589,9]
[388050228,1758991869750,-480.0,0.0003589,9]
[388050229,1758991869759,-480.0,0.0003589,9]
[388050230,1758991869769,-480.0,0.0003589,9]
[388050231,1758991869778,-480.0,0.0003589,9]
[388050232,1758991869789,-314.32798609,0.0003589,9]
[388050233,1758991869799,-619.66,0.0003589,9]
[388050234,1758991869808,-485.39332521,0.0003589,9]
[388050235,1758991869819,-480.0,0.0003589,9]
[388050236,1758991869828,-480.0,0.0003589,9]
[388050237,1758991869837,-480.0,0.0003589,9]
[388050238,1758991869847,-480.0,0.0003589,9]
[388050239,1758991869857,-807.37,0.0003589,9]
[388050240,1758991869866,-5666.1,0.0003589,9]
[388050241,1758991869875,-480.0,0.0003589,9]
[388050242,1758991869884,-480.0,0.0003589,9]
[388050243,1758991869894,-480.0,0.0003589,9]
[388050244,1758991869904,-480.0,0.0003589,9]
[388050245,1758991869915,-480.0,0.0003589,9]
[388050246,1758991869926,-480.0,0.0003589,9]
[388050247,1758991869936,-480.0,0.0003589,9]
[388050248,1758991869944,-480.0,0.0003589,9]
[388050249,1758991869953,-480.0,0.0003589,9]
[388050250,1758991869962,-480.0,0.0003589,9]
[388050251,1758991869972,-480.0,0.0003589,9]
[388050252,1758991869981,-480.0,0.0003589,9]
[388050253,1758991869990,-1403.05,0.0003589,9]
[388050254,1758991870001,-480.0,0.0003589,9]
[388050255,1758991870010,-567.61,0.0003589,9]
[388050256,1758991870019,-480.0,0.0003589,9]
[388050257,1758991870028,-480.0,0.0003589,9]
[388050258,1758991870037,-480.0,0.0003589,9]
[388050259,1758991870048,-598.33,0.0003589,9]
[388050260,1758991870058,-480.0,0.0003589,9]
[388050261,1758991870068,-480.0,0.0003589,9]
[388050262,1758991870078,-480.0,0.0003589,9]
[388050263,1758991870087,-480.0,0.0003589,9]
[388050264,1758991870096,-424.48692789,0.0003589,9]
[388050265,1758991870105,-480.0,0.0003589,9]
[388050266,1758991870114,-486.08548576,0.0003589,9]
[388050267,1758991870124,-480.0,0.0003589,9]
[388050268,1758991870133,-3533.19,0.0003589,9]
[388050269,1758991870143,-480.0,0.0003589,9]
[388050270,1758991870152,-640.15,0.0003589,9]
[388050271,1758991870162,-480.0,0.0003589,9]
[388050272,1758991870172,-480.0,0.0003589,9]
[388050273,1758991870182,-480.0,0.0003589,9]
[388050274,1758991870194,-2730.15,0.0003589,9]
[388050275,1758991870203,-481.00795552,0.0003589,9]
[388050276,1758991870213,-919.41,0.0003589,9]
[388050277,1758991870223,-480.0,0.0003589,9]
[388050278,1758991870233,-480.0,0.0003589,9]
[388050279,1758991870242,-480.0,0.0003589,9]
[388050280,1758991870251,-480.0,0.0003589,9]
[388050281,1758991870260,-480.0,0.0003589,9]
[388050282,1758991870269,-2136.36,0.0003589,9]
[388050283,1758991870279,-480.0,0.0003589,9]
[388050284,1758991870288,-1630.88,0.0003589,9]
[388050285,1758991870298,-480.0,0.0003589,9]
[388050286,1758991870307,-1685.61,0.0003589,9]
[388050287,1758991870317,-1122.1,0.0003589,9]
[388050288,1758991870327,-480.0,0.0003589,9]
[388050289,1758991870336,-480.0,0.0003589,9]
[388050290,1758991870346,-480.0,0.0003589,9]
[388050291,1758991870355,-548.22,0.0003589,9]
[388050292,1758991870365,-480.0,0.0003589,9]
[388050293,1758991870376,-1371.69,0.0003589,9]
[388050294,1758991870386,-480.0,0.0003589,9]
[388050295,1758991870396,-480.0,0.0003589,9]
[388050296,1758991870405,-704.27,0.0003589,9]
[388050297,1758991870414,-480.0,0.0003589,9]
[388050298,1758991870423,-480.0,0.0003589,9]
[388050299,1758991870433,-933.82,0.0003589,9]
[388050300,1758991870442,-480.0,0.0003589,9]
[388050301,1758991870452,-440.37067205,0.0003589,9]
[388050302,1758991870461,-1692.47,0.0003589,9]
[388050303,1758991870470,-3255.34,0.0003589,9]
[388050304,1758991870479,-904.56,0.0003589,9]
[388050305,1758991870488,-480.0,0.0003589,9]
[388050306,1758991870498,-495.38,0.0003589,9]
[388050307,1758991870507,-480.0,0.0003589,9]
[388050308,1758991870516,-616.92,0.0003589,9]
[388050309,1758991870525,-480.0,0.0003589,9]
[388050310,1758991870534,-480.0,0.0003589,9]
[388050311,1758991870544,-480.0,0.0003589,9]
[388050312,1758991870553,-480.0,0.0003589,9]
[388050313,1758991870562,-480.0,0.0003589,9]
[388050314,1758991870574,-1112.33,0.0003589,9]
[388050315,1758991870584,-480.0,0.0003589,9]
[388050316,1758991870593,-480.0,0.0003589,9]
[388050317,1758991870603,-480.0,0.0003589,9]
[388050318,1758991870613,-480.0,0.0003589,9]
[388050319,1758991870622,-591.61,0.0003589,9]
[388050320,1758991870632,-1383.8,0.0003589,9]
[388050321,1758991870641,-480.0,0.0003589,9]
[388050322,1758991870651,-478.48027743,0.0003589,9]
[388050323,1758991870660,-984.86,0.0003589,9]
[388050324,1758991870669,-611.37,0.0003589,9]
[388050325,1758991870678,-480.0,0.0003589,9]
[388050326,1758991870688,-500.0,0.0003589,9]
[388050327,1758991870698,-480.0,0.0003589,9]
[388050328,1758991870707,-480.0,0.0003589,9]
[388050329,1758991870717,-480.0,0.0003589,9]
[388050330,1758991870726,-480.0,0.0003589,9]
[388050331,1758991870735,-480.0,0.0003589,9]
[388050332,1758991870745,-1719.94,0.0003589,9]
[388050333,1758991870754,-621.2,0.0003589,9]
[388050334,1758991870763,-660.9,0.0003589,9]
[388050335,1758991870772,-480.0,0.0003589,9]
[388050336,1758991870782,-480.0,0.0003589,9]
[388050337,1758991870791,-480.0,0.0003589,9]
[388050338,1758991870801,-480.0,0.0003589,9]
[388050339,1758991870810,-531.81,0.0003589,9]
[388050340,1758991870819,-480.0,0.0003589,9]
[388050341,1758991870829,-480.0,0.0003589,9]
[388050342,1758991870839,-480.0,0.0003589,9]
[388050343,1758991870848,-480.0,0.0003589,9]
[388050344,1758991870857,-689.21,0.0003589,9]
[388050345,1758991870866,-1409.83,0.0003589,9]
[388050346,1758991870876,-671.08,0.0003589,9]
[388050347,1758991870886,-480.0,0.0003589,9]
[388050348,1758991870895,-480.0,0.0003589,9]
[388050349,1758991870904,-502.47,0.0003589,9]
[388050350,1758991870914,-480.0,0.0003589,9]
[388050351,1758991870924,-621.33,0.0003589,9]
[388050352,1758991870933,-480.0,0.0003589,9]
[388050353,1758991870943,-480.0,0.0003589,9]
[388050354,1758991870952,-531.98,0.0003589,9]
[388050355,1758991870961,-480.0,0.0003589,9]
[388050356,1758991870970,-480.0,0.0003589,9]
[388050357,1758991870979,-480.0,0.0003589,9]
[388050358,1758991870989,-500.0,0.0003589,30]
[388050359,1758991870998,-647.8,0.0003589,9]
[388050360,1758991871007,-1000.0,0.0003589,9]
[388050361,1758991871016,-703.1,0.0003589,9]
[388050362,1758991871026,-480.0,0.0003589,9]
[388050363,1758991871035,-480.0,0.0003589,9]
[388050364,1758991871045,-480.0,0.0003589,9]
[388050365,1758991871054,-480.0,0.0003589,9]
[388050366,1758991871064,-480.0,0.0003589,9]
[388050367,1758991871073,-1280.47,0.0003589,9]
[388050368,1758991871083,-1144.79,0.0003589,9]
[388050369,1758991871093,-480.0,0.0003589,9]
[388050370,1758991871107,-420.1532824,0.0003589,9]
[388050371,1758991871124,-1847.01,0.0003589,9]
[388050372,1758991871134,-1199.76,0.0003589,9]
[388050373,1758991871144,-480.0,0.0003589,9]
[388050374,1758991871153,-7268.33,0.0003589,9]
[388050375,1758991871163,-480.0,0.0003589,9]
[388050376,1758991871173,-480.0,0.0003589,9]
[388050377,1758991871182,-2447.77,0.0003589,9]
[388050378,1758991871191,-480.0,0.0003589,9]
[388050379,1758991871201,-480.0,0.0003589,9]
[388050380,1758991871210,-480.0,0.0003589,9]
[388050381,1758991871219,-480.0,0.0003589,7]
[388050382,1758991871229,-480.0,0.0003589,9]
[388050383,1758991871238,-480.0,0.0003589,9]
[388050384,1758991871247,-480.0,0.0003589,9]
[388050385,1758991871256,-480.0,0.0003589,9]
[388050386,1758991871266,-480.0,0.0003589,9]
[388050387,1758991871276,-480.0,0.0003589,9]
[388050388,1758991871285,-480.0,0.0003589,9]
[388050389,1758991871295,-480.0,0.0003589,9]
[388050390,1758991871305,-1439.8,0.0003589,9]
[388050391,1758991871314,-453.19647502,0.0003589,9]
[388050392,1758991871324,-895.15,0.0003589,9]
[388050393,1758991871333,-480.0,0.0003589,9]
[388050394,1758991871343,-480.0,0.0003589,9]
[388050395,1758991871352,-480.0,0.0003589,9]
[388050396,1758991871362,-480.0,0.0003589,9]
[388050397,1758991871372,-1627.54,0.0003589,9]
[388050398,1758991871381,-480.0,0.0003589,2]
[388050399,1758991871391,-480.0,0.0003589,9]
[388050400,1758991871401,-480.0,0.0003589,9]
[388050401,1758991871411,-480.0,0.0003589,9]
[388050402,1758991871420,-480.0,0.0003589,9]
[388050403,1758991871429,-480.0,0.0003589,9]
[388050404,1758991871437,-480.0,0.0003589,9]
[388050405,1758991871446,-480.0,0.0003589,9]
[388050406,1758991871456,-480.0,0.0003589,9]
[388050407,1758991871465,-480.0,0.0003589,9]
[388050408,1758991871473,-480.0,0.0003589,9]
[388050409,1758991871482,-480.0,0.0003589,9]
[388050410,1758991871490,-480.0,0.0003589,9]
[388050411,1758991871498,-480.0,0.0003589,9]
[388050412,1758991871506,-941.45,0.0003589,9]
[388050413,1758991871514,-605.01,0.0003589,9]
[388050414,1758991871523,-480.0,0.0003589,9]
[388050415,1758991871531,-2127.68,0.0003589,9]
[388050416,1758991871538,-480.0,0.0003589,9]
[388050417,1758991871548,-480.0,0.0003589,9]
[388050418,1758991871558,-480.0,0.0003589,9]
[388050419,1758991871567,-723.86,0.0003589,9]
[388050420,1758991871581,-480.0,0.0003589,9]
[388050421,1758991871591,-480.0,0.0003589,9]
[388050422,1758991871601,-684.13,0.0003589,9]
[388050423,1758991871610,-480.0,0.0003589,9]
[388050424,1758991871620,-480.0,0.0003589,9]
[388050425,1758991871630,-480.0,0.0003589,9]
[388050426,1758991871640,-604.31,0.0003589,9]
[388050427,1758991871649,-480.0,0.0003589,9]
[388050428,1758991871658,-480.0,0.0003589,9]
[388050429,1758991871667,-480.0,0.0003589,9]
[388050430,1758991871677,-480.0,0.0003589,9]
[388050431,1758991871686,-2493.42,0.0003589,9]
[388050432,1758991871701,-480.0,0.0003589,9]
[388050433,1758991871711,-480.0,0.0003589,9]
[388050434,1758991871721,-962.39,0.0003589,9]
[388050435,1758991871731,-629.14762244,0.0003589,9]
[388050436,1758991871741,-480.0,0.0003589,9]
[388050437,1758991871750,-480.0,0.0003589,9]
[388050438,1758991871760,-1796.11,0.0003589,9]
[388050439,1758991871770,-480.0,0.0003589,9]
[388050440,1758991871780,-480.0,0.0003589,9]
[388050441,1758991871790,-480.0,0.0003589,9]
[388050442,1758991871801,-480.0,0.0003589,9]
[388050443,1758991871812,-480.0,0.0003589,9]
[388050444,1758991871822,-480.0,0.0003589,9]
[388050445,1758991871833,-480.0,0.0003589,9]
[388050446,1758991871843,-269.62648551,0.0003589,9]
[388050447,1758991871854,-2447.11,0.0003589,9]
[388050448,1758991871863,-620.25,0.0003589,9]
[388050449,1758991871873,-480.0,0.0003589,9]
[388050450,1758991871882,-480.0,0.0003589,9]
[388050451,1758991871892,-480.0,0.0003589,9]
[388050452,1758991871902,-1595.5,0.0003589,9]
[388050453,1758991871912,-480.0,0.0003589,9]
[388050454,1758991872071,-635.31,0.0003589,9]
[388050455,1758991872083,-480.0,0.0003589,9]
[388050456,1758991872092,-895.36,0.0003589,9]
[388050457,1758991872101,-480.0,0.0003589,9]
[388050458,1758991872111,-480.0,0.0003589,9]
[388050459,1758991872120,-480.0,0.0003589,9]
[388050460,1758991872130,-1839.42,0.0003589,9]
[388050461,1758991872139,-1323.57,0.0003589,9]
[388050462,1758991872148,-480.0,0.0003589,9]
[388050463,1758991872158,-480.0,0.0003589,9]
[388050464,1758991872168,-384.61351312,0.0003589,9]
[388050465,1758991872178,-480.0,0.0003589,9]
[388050466,1758991872188,-320.42119164,0.0003589,9]
[388050467,1758991872217,-159.57880836,0.0003589,9]
[388050468,1758991872228,-480.0,0.0003589,9]
[388050469,1758991872237,-442.72119164,0.0003589,9]
[388050470,1758991872249,-37.27880836,0.0003589,9]
[388050471,1758991872258,-480.0,0.0003589,9]
[388050472,1758991872268,-1145.06,0.0003589,9]
[388050473,1758991872280,-480.0,0.0003589,9]
[388050474,1758991872290,-1413.08,0.0003589,9]
[388050475,1758991872300,-509.77,0.0003589,9]
[388050476,1758991872310,-1729.23,0.0003589,9]
[388050477,1758991872319,-68.35686434,0.0003589,9]
[388050478,1758991872331,-1405.96313566,0.0003589,9]
[388050479,1758991872340,-480.0,0.0003589,9]
[388050480,1758991872349,-480.0,0.0003589,9]
[388050481,1758991872359,-661.41,0.0003589,9]
[388050482,1758991872368,-1577.79,0.0003589,9]
[388050483,1758991872377,-480.0,0.0003589,9]
[388050484,1758991872386,-480.0,0.0003589,9]
[388050485,1758991872396,-480.0,0.0003589,9]
[388050486,1758991872405,-888.85,0.0003589,9]
[388050487,1758991872414,-480.0,0.0003589,9]
[388050488,1758991872424,-563.71,0.0003589,9]
[388050489,1758991872434,-1675.84190662,0.0003589,9]
[388050490,1758991872449,-2252.98809338,0.0003589,9]
[388050491,1758991872459,-480.0,0.0003589,9]
[388050492,1758991872468,-480.0,0.0003589,9]
[388050493,1758991872477,-12789.04,0.0003589,9]
[388050494,1758991872486,-480.0,0.0003589,9]
[388050495,1758991872496,-480.0,0.0003589,7]
[388050496,1758991872505,-1701.99,0.0003589,9]
[388050497,1758991872514,-480.0,0.0003589,9]
[388050498,1758991872523,-591.58,0.0003589,9]
[388050499,1758991872533,-1669.16,0.0003589,9]
[388050500,1758991872543,-480.0,0.0003589,9]
[388050501,1758991872552,-480.0,0.0003589,9]
[388050502,1758991872562,-2571.08,0.0003589,9]
[388050503,1758991872574,-2296.39,0.0003589,9]
[388050504,1758991872585,-480.0,0.0003589,9]
[388050505,1758991872594,-934.01,0.0003589,9]
[388050506,1758991872603,-480.0,0.0003589,9]
[388050507,1758991872612,-480.0,0.0003589,9]
[388050508,1758991872621,-502.9,0.0003589,9]
[388050509,1758991872630,-480.0,0.0003589,9]
[388050510,1758991872639,-480.0,0.0003589,9]
[388050511,1758991872647,-480.0,0.0003589,9]
[388050512,1758991872656,-1650.67,0.0003589,9]
[388050513,1758991872665,-480.0,0.0003589,9]
[388050514,1758991872674,-1162.04,0.0003589,9]
[388050515,1758991872682,-663.63,0.0003589,9]
[388050516,1758991872691,-591.23,0.0003589,9]
[388050517,1758991872700,-480.0,0.0003589,9]
[388050518,1758991872709,-487.70825061,0.0003589,9]
[388050519,1758991872718,-480.0,0.0003589,9]
[388050520,1758991872727,-4200.92605936,0.0003589,9]
[388050521,1758991873041,-186.38023505,0.00024989,2]
[388050522,1758991873051,-151.0,0.00032886,7]
[388050523,1758991873061,-2338.7133745,0.00032886,7]
[388050524,1758991873458,-7661.2866255,0.00032886,7]
[388050525,1758991873469,-10000.0,0.00032886,7]
[388050526,1758991873478,-10000.0,0.00032886,7]
[388050527,1758991873487,-10000.0,0.00032986,7]
[388050528,1758991873496,-151.0,0.00032986,7]
[388050529,1758991873505,-2160.74998852,0.00032986,7]
[388050530,1758991873542,-676.25874426,0.00032986,7]
[388050531,1758991873813,-3345.47067929,0.00024953,2]
[388050532,1758991873825,-1654.52932071,0.00024953,2]
[388050533,1758991873834,-10000.0,0.00032886,7]
[388050534,1758991873843,-10000.0,0.00032886,7]
[388050535,1758991873852,-5713.4414629,0.00032986,7]
[388050536,1758991873874,-1449.54980432,0.00032986,7]
[388050537,1758991873883,-10000.0,0.00032986,7]
[388050538,1758991873892,-10000.0,0.00032986,7]
[388050539,1758991873902,-10000.0,0.00032986,7]
[388050540,1758991873911,-10000.0,0.00033137,7]
[388050541,1758991873920,-151.0,0.00033137,7]
[388050542,1758991873930,-1851.07909941,0.00033137,7]
[388050543,1758991873941,-1719.49533249,0.00033137,7]
[388050544,1758991873952,-6429.4255681,0.00033137,7]
[388050545,1758991873962,-10000.0,0.00033137,7]
[388050546,1758991873971,-10000.0,0.00033137,7]
[388050547,1758991873982,-9093.17768694,0.00033137,7]
[388050548,1758991875876,160.0,0.00024114,2]
[388050549,1758991885574,324.24822905,0.00024114,2]
[388050550,1758991947494,300.0,0.000241,2]
[388050551,1758992157255,5000.0,0.00024114,2]
[388050552,1758992163686,-5000.0,0.0002449,2]
[388050553,1758992172438,0.01,0.0002449,2]
[388050554,1758992172461,4999.99,0.0002449,2]
[388050555,1758992180334,5000.0,0.0002449,2]
[388050556,1758992196207,0.02,0.0002449,2]
[388050557,1758992196228,4999.98,0.0002449,2]
[388050558,1758992204142,5000.0,0.0002449,2]
[388050559,1758992219336,0.03,0.0002449,2]
[388050560,1758992219360,4999.97,0.0002449,2]
[388050561,1758992241908,5000.0,0.0002449,2]
[388050562,1758992264367,0.04,0.0002449,2]
[388050563,1758992264389,4999.96,0.0002449,2]
[388050564,1758992283866,-170.05396107,0.000245,2]
[388050565,1758992286894,5000.0,0.0002449,2]
[388050566,1758992309521,5000.0,0.00024563,2]
[388050567,1758992333139,5000.0,0.00024563,2]
[388050568,1758992355803,0.01,0.00024563,2]
[388050569,1758992355828,4999.99,0.00024563,2]
[388050570,1758992378768,5000.0,0.00024563,2]
[388050571,1758992401327,0.02,0.00024563,2]
[388050572,1758992401349,4999.98,0.00024563,2]
[388050573,1758992424260,5000.0,0.00024563,2]
[388050574,1758992440643,905.72232009,0.00024527,2]
[388050575,1758992448627,5000.0,0.00024527,2]
[388050576,1758992456769,4094.28767991,0.00024527,2]
[388050577,1758992472239,5000.0,0.00024527,2]
[388050578,1758992495624,5000.0,0.00024527,2]
[388050579,1758992504130,0.01,0.000245,2]
[388050580,1758992504152,299.99,0.000245,2]
[388050581,1758992515971,300.0,0.000245,2]
[388050582,1758992517892,5000.0,0.00024527,2]
[388050583,1758992528597,300.0,0.000245,2]
[388050584,1758992540678,4400.01,0.00024527,2]
[388050585,1758992540701,599.99,0.00024527,2]
[388050586,1758992540791,300.0,0.000245,2]
[388050587,1758992547724,300.0,0.000245,2]
[388050588,1758992552895,300.0,0.000245,2]
[388050589,1758992559001,300.0,0.000245,2]
[388050590,1758992561706,158.0,0.00024438,13]
[388050591,1758992563067,5000.0,0.00024527,2]
[388050592,1758992564463,300.0,0.000245,2]
[388050593,1758992571103,300.0,0.000245,2]
[388050594,1758992577497,300.0,0.000245,2]
[388050595,1758992582229,300.0,0.000245,2]
[388050596,1758992586046,5000.0,0.00024527,2]
[388050597,1758992608237,160.0,0.000245,2]
[388050599,1758992675055,167.243571,0.00013547,2]
[388050600,1758992715348,-5000.0,0.00024255,2]
[388050601,1758992724648,0.01,0.00024255,2]
[388050602,1758992724669,4999.99,0.00024255,2]
[388050603,1758992735466,161.0,9.1e-07,2]
[388050604,1758992747901,3962.16313773,0.00024255,2]
[388050605,1758992806810,876.85686227,0.00024255,2]
[388050606,1758992806836,4123.14313773,0.00024255,2]
[388050607,1758992812125,-418.58567357,0.00024989,7]
[388050608,1758992827122,-67.87580954,0.00024989,7]
[388050609,1758992827145,-600.0,0.00027105,30]
[388050610,1758992827165,-213.66818122,0.00027253,2]
[388050611,1758992951082,-4683.88,0.00024492,2]
[388050640,1758993031782,-286.81356417,0.00027211,2]
[388050643,1758993031794,-713.18643583,0.00027211,2]
[388050645,1758993031803,-458.99669131,0.00027253,2]
[388050647,1758993031813,-808.1104182,0.00027403,2]
[388050648,1758993031822,-277.0,0.00027511,2]
[388050650,1758993031832,-351.12998,0.00027512,2]
[388050652,1758993031841,-199.0,0.00028219,14]
[388050654,1758993031851,-155.0,0.00028219,2]
[388050655,1758993031860,-180.922883,0.00028905,60]
[388050657,1758993031870,-165.62867712,0.00031989,2]
[388050658,1758993031881,-500.0,0.00031989,2]
[388050659,1758993031890,-500.0,0.00031989,2]
[388050660,1758993031900,-500.0,0.00031989,2]
[388050661,1758993031911,-632.92691468,0.00031989,2]
[388050662,1758993031920,-508.90259004,0.00031989,2]
[388050663,1758993031929,-292.0624785,0.0003199,2]
[388050664,1758993031939,-635.0,0.00031999,2]
[388050665,1758993031948,-2161.0,0.00031999,2]
[388050666,1758993031958,-410.0,0.00031999,2]
[388050667,1758993031967,-160.75077375,0.00032,120]
[388050668,1758993031977,-180.08283525,0.00032,120]
[388050669,1758993031986,-172.22016768,0.00032,120]
[388050670,1758993031996,-4671.89122962,0.00032136,2]
[388050671,1758993032005,-183.639,0.00032296,32]
[388050672,1758993032014,-493.41002964,0.00032298,15]
[388050673,1758993032023,-180.08283525,0.000323,120]
[388050674,1758993032032,-172.22016768,0.000323,120]
[388050675,1758993032042,-250.0,0.00032362,2]
[388050676,1758993032051,-12139.4651613,0.00032461,2]
[388050677,1758993032060,-227.427,0.00032562,2]
[388050678,1758993032070,-250.0,0.00032562,2]
[388050679,1758993032079,-831.40841424,0.00032591,2]
[388050680,1758993032091,-172.22016768,0.000326,120]
[388050681,1758993032101,-600.0,0.00032628,30]
[388050682,1758993032110,-9217.13812241,0.00032788,2]
[388050683,1758993032119,-367.35339418,0.0003279,2]
[388050684,1758993032130,-158.53506662,0.0003279,2]
[388050685,1758993032139,-8506.40121802,0.00032798,2]
[388050686,1758993032171,-908.95456817,0.00032798,2]
[388050713,1758993037685,-669.86100636,0.00032798,2]
[388050715,1758993037697,-1906.28533326,0.00032798,2]
[388050717,1758993037709,-1855.94115,0.00032798,2]
[388050719,1758993037720,-21113.64148568,0.00032798,2]
[388050721,1758993037730,-3000.0,0.000328,13]
[388050723,1758993037739,-3000.0,0.0003281,13]
[388050725,1758993037748,-3000.0,0.0003282,13]
[388050727,1758993037757,-3000.0,0.0003283,13]
[388050729,1758993037767,-263.042,0.00032832,2]
[388050731,1758993037777,-29.42541992,0.00032832,2]
[388050733,1758993037788,-263.28958008,0.00032832,2]
[388050735,1758993037796,-3000.0,0.0003284,13]
[388050737,1758993037805,-500.0,0.00032849,2]
[388050739,1758993037815,-3000.0,0.0003285,13]
[388050741,1758993037824,-352.82889561,0.00032859,2]
[388050743,1758993037833,-2589.09451336,0.0003286,13]
[388050745,1758993037844,-410.90548664,0.0003286,13]
[388050747,1758993037854,-2389.2870806,0.0003287,13]
[388050750,1758993037869,-610.7129194,0.0003287,13]
[388050752,1758993037878,-150.0,0.00032876,2]
[388050754,1758993037887,-170.61890823,0.00032876,2]
[388050756,1758993037897,-250.64807518,0.00032876,2]
[388050759,1758993037918,-73486.45690412,0.00032876,2]
[388050761,1758993037928,-372.879387,0.00032877,2]
[388050763,1758993037938,-3000.0,0.0003288,13]
[388050765,1758993037946,-1000.0,0.00032886,7]
[388050767,1758993037955,-151.0,0.00032886,7]
[388050769,1758993037964,-119903.40799371,0.00032886,2]
[388050773,1758993037989,-878.73,0.00032886,2]
[388050775,1758993038000,-1902.47090782,0.00032886,2]
[388050777,1758993038011,-455.27,0.00032886,2]
[388050867,1758993043005,-46.50951928,0.00031989,2]
[388050868,1758993043019,-339.02397238,0.00031989,2]
[388050869,1758993043029,-500.0,0.00031989,2]
[388050870,1758993043039,-500.0,0.00031989,2]
[388050871,1758993043048,-500.0,0.00031989,2]
[388050872,1758993043058,-382.28901574,0.00031989,2]
[388050873,1758993043068,-18799.155734,0.00032859,2]
[388050874,1758993043080,-268.50002,0.00032859,2]
[388050880,1758993045754,-410.0,0.00032832,2]
[388050881,1758993045764,-210.1916192,0.00032859,2]
[388050887,1758993046326,-4054.39325301,0.00032859,2]
[388050888,1758993260568,8000.0,0.00033216,120]
[388050889,1758993709593,160.0,0.00024017,2]
[388050890,1758993822434,167.243571,0.00014566,2]
[388050891,1758993888019,417.15472785,0.00024017,2]
[388050892,1758993912513,417.15472785,0.00024017,2]
[388050893,1758993957328,591.92,0.00024017,2]
[388050894,1758994036444,-161.0,0.00024466,13]
[388050895,1758994036467,-4192.72501826,0.00024703,2]
[388050896,1758994059902,5000.0,0.00024466,2]
[388050897,1758994068287,252.66510701,0.000209,2]
[388050898,1758994083535,4747.34489299,0.00024466,2]
[388050899,1758994083559,252.65510701,0.00024466,2]
[388050900,1758994091663,5000.0,0.00024466,2]
[388050901,1758994099437,273.10067795,0.00021,2]
[388050902,1758994105439,33922.21,0.00033255,60]